lending/lending_fUSD_20241130
["ID","MTS","AMOUNT","RATE_DAILY","PERIOD"]
[343727106,1732935041709,-2417.9101965,0.0001,2]
[343727107,1732935041825,-486.40217459,0.0001,2]
[343727108,1732935041836,-489.14833744,0.0001,2]
[343727109,1732935041847,-72866.2593287,0.0001,2]
[343727110,1732935041860,-274.26,0.0001,2]
[343727169,1732935043639,-107217.71609226,0.0001,2]
[343727170,1732935043749,-5420.415,0.0001,2]
[343727171,1732935043761,-5830.01259267,0.0001,2]
[343727172,1732935043771,-9084.6,0.0001,2]
[343727173,1732935043782,-2609.96815306,0.0001,2]
[343727174,1732935043793,-387.292002,0.0001,2]
[343727175,1732935043807,-1302.1840501,0.0001,2]
[343727176,1732935043817,-8003.0340664,0.0001,2]
[343727177,1732935043828,-366.08637233,0.0001,2]
[343727178,1732935044005,-2374.7527846,0.0001,2]
[343727179,1732935044016,-1068035.94989407,0.0001,2]
[343727180,1732935044027,-7614.30227607,0.0001,2]
[343727181,1732935044039,-16873.57807308,0.0001,2]
[343727229,1732935046503,-54750.0,0.0001,2]
[343727230,1732935046516,-46387.15791171,0.0001,2]
[343727231,1732935046530,-1822.68810001,0.0001,2]
[343727232,1732935046975,-21664.23750584,0.0001,2]
[343727233,1732935046988,-2999.9999995,0.0001,2]
[343727234,1732935047000,-6599.70372626,0.0001,2]
[343727235,1732935178966,170.96,0.00016658,30]
[343727241,1732935599862,1015.264652,0.00027,60]
[343727339,1732936077747,251.58,0.00027,60]
[343727352,1732936232147,-905.0,8.219e-05,2]
[343727353,1732936232158,-271.07026627,8.219e-05,2]
[343727354,1732936232169,-173.86973373,8.219e-05,2]
[343727355,1732936232179,-250.0,8.884e-05,2]
[343727356,1732936232188,-1000.0,8.884e-05,2]
[343727357,1732936232198,-250.0,8.898e-05,2]
[343727358,1732936232207,-386.66,8.899e-05,2]
[343727359,1732936232217,-674.25,8.899e-05,2]
[343727360,1732936232226,-307.36,8.907e-05,2]
[343727361,1732936232236,-213.09,9.275e-05,2]
[343727362,1732936232245,-171.137255,9.466e-05,2]
[343727363,1732936232254,-555.35,9.589e-05,2]
[343727364,1732936232264,-152.85,9.589e-05,2]
[343727365,1732936232274,-397.9,9.589e-05,2]
[343727366,1732936232283,-555.35,9.726e-05,2]
[343727367,1732936232293,-150.0,9.756e-05,2]
[343727368,1732936232303,-150.0,9.779e-05,2]
[343727369,1732936232313,-150.0,9.789e-05,2]
[343727370,1732936232322,-150.0,9.791e-05,2]
[343727371,1732936232331,-1074.0,9.801e-05,2]
[343727372,1732936232342,-150.0,9.852e-05,2]
[343727373,1732936232351,-194.66036718,9.86e-05,2]
[343727374,1732936232360,-150.0,9.863e-05,2]
[343727375,1732936232370,-555.35,9.863e-05,2]
[343727376,1732936232379,-1187.24,9.863e-05,2]
[343727377,1732936232389,-152.85,9.863e-05,2]
[343727380,1732936232399,-150.0,9.867e-05,2]
[343727383,1732936232408,-150.0,9.883e-05,2]
[343727385,1732936232417,-150.0,9.886e-05,2]
[343727387,1732936232426,-150.0,9.898e-05,2]
[343727389,1732936232436,-1000.0,9.899e-05,2]
[343727391,1732936232445,-919.3908,9.899e-05,2]
[343727393,1732936232454,-10441.02562963,9.899e-05,2]
[343727395,1732936232466,-1450.0,9.899e-05,2]
[343727953,1732936239001,-13675.21777037,9.899e-05,2]
[343727954,1732936239011,-3847.8119,9.899e-05,2]
[343727955,1732936239021,-2500.0,9.899e-05,2]
[343727956,1732936239031,-2500.0,9.9e-05,2]
[343727957,1732936239040,-11881.58699012,9.9e-05,2]
[343727958,1732936239049,-1012.0,9.9e-05,2]
[343727959,1732936239060,-150.0,9.902e-05,2]
[343727960,1732936239070,-150.0,9.905e-05,2]
[343727961,1732936239080,-150.0,9.924e-05,2]
[343727962,1732936239090,-150.0,9.931e-05,2]
[343727963,1732936239102,-150.0,9.936e-05,2]
[343727964,1732936239112,-150.0,9.945e-05,2]
[343727965,1732936239122,-150.0,9.955e-05,2]
[343727966,1732936239132,-150.0,9.96e-05,2]
[343727967,1732936239141,-200.0,9.971e-05,2]
[343727968,1732936239151,-200.0,9.971e-05,2]
[343727969,1732936239160,-161.0190736,9.973e-05,2]
[343727970,1732936239170,-500.0,9.973e-05,2]
[343727971,1732936239183,-500.0,9.973e-05,2]
[343727972,1732936239193,-415.30821837,9.974e-05,2]
[343727973,1732936239202,-200.0,9.978e-05,2]
[343727974,1732936239213,-150.0,9.98e-05,2]
[343727975,1732936239222,-200.0,9.981e-05,2]
[343727976,1732936239232,-373.58987112,9.981e-05,2]
[343727977,1732936239242,-982.077,9.982e-05,2]
[343727978,1732936239252,-415.30821837,9.982e-05,2]
[343727979,1732936239262,-373.58987112,9.983e-05,2]
[343727980,1732936239272,-200.0,9.986e-05,2]
[343727981,1732936239281,-373.58987112,9.987e-05,2]
[343727982,1732936239291,-200.0,9.987e-05,2]
[343727983,1732936239300,-373.58987112,9.988e-05,2]
[343727984,1732936239310,-200.0,9.988e-05,2]
[343727985,1732936239320,-415.30821837,9.989e-05,2]
[343727986,1732936239329,-415.30821837,9.993e-05,2]
[343727987,1732936239338,-415.30821837,9.993e-05,2]
[343727988,1732936239349,-167.85428619,9.994e-05,2]
[343727989,1732936239625,-247.45393218,9.994e-05,2]
[343727990,1732936239635,-1000.0,9.994e-05,2]
[343727991,1732936239645,-200.0,9.994e-05,2]
[343727992,1732936239655,-373.58987112,9.997e-05,2]
[343727993,1732936239665,-150.0,9.998e-05,2]
[343727994,1732936239675,-150.0,9.998e-05,2]
[343727995,1732936239687,-150.0,9.998e-05,2]
[343727996,1732936239704,-150.0,9.998e-05,2]
[343727997,1732936239714,-150.0,9.998e-05,2]
[343727998,1732936239724,-150.0,9.998e-05,2]
[343727999,1732936239734,-150.0,9.998e-05,2]
[343728000,1732936239744,-150.0,9.998e-05,2]
[343728001,1732936239754,-150.0,9.998e-05,2]
[343728002,1732936239765,-150.0,9.998e-05,2]
[343728003,1732936239775,-150.0,9.998e-05,2]
[343728004,1732936239785,-150.0,9.998e-05,2]
[343728005,1732936239795,-373.58987112,9.999e-05,2]
[343728006,1732936239805,-610.54926875,9.999e-05,2]
[343728007,1732936239814,-250000.0,9.999e-05,2]
[343728008,1732936239827,-1571.6046,9.999e-05,2]
[343728009,1732936239836,-500.0,9.999e-05,2]
[343728010,1732936239848,-2000.0,9.999e-05,2]
[343728011,1732936239857,-2000.0,9.999e-05,2]
[343728012,1732936239867,-196.34238466,0.0001,2]
[343728013,1732936239877,-8668.48484175,0.0001,2]
[343728014,1732936239887,-965363.03382461,0.0001,2]
[343728015,1732936239897,-6109.81693022,0.0001,2]
[343728016,1732936239907,-6109.81693016,0.0001,2]
[343728017,1732936239917,-6109.81693016,0.0001,2]
[343728018,1732936239927,-6109.81693016,0.0001,2]
[343728019,1732936239936,-6109.81693016,0.0001,2]
[343728020,1732936239946,-6109.81693016,0.0001,2]
[343728021,1732936239956,-6109.81693016,0.0001,2]
[343728022,1732936239966,-6109.81693016,0.0001,2]
[343728023,1732936239977,-6109.81693016,0.0001,2]
[343728024,1732936239987,-15085551.46497191,0.0001,2]
[343728025,1732936240001,-4047.70308701,0.0001,2]
[343728027,1732936240765,-8245687.23649225,0.0001,2]
[343728028,1732936240777,-614.84011785,0.0001,2]
[343728029,1732936240961,-477.05019451,0.0001,2]
[343728030,1732936243030,-29433.14373358,0.0001,2]
[343728031,1732936244003,-3708.08671784,0.0001,2]
[343728032,1732936244015,-4194.14594876,0.0001,2]
[343728033,1732936244026,-3618.56128572,0.0001,2]
[343728034,1732936244037,-3863.24356937,0.0001,2]
[343728035,1732936244049,-4048.785647,0.0001,2]
[343728036,1732936244060,-13198.47577895,0.0001,2]
[343728041,1732936246506,-3598.4,0.0001,2]
[343728071,1732936740531,196.52,0.00016658,30]
[343728073,1732936844593,150.0,0.0001,5]
[343728099,1732937083248,649.7,7e-05,2]
[343728100,1732937083271,800.0,7e-05,2]
[343728101,1732937083292,600.0,7e-05,2]
[343728102,1732937083313,500.0,7e-05,2]
[343728103,1732937083333,500.0,7e-05,2]
[343728104,1732937083353,300.0,7e-05,2]
[343728105,1732937083376,83964.49527317,7e-05,2]
[343728114,1732937178407,150.0,7e-05,2]
[343728115,1732937178428,150.0,7e-05,2]
[343728116,1732937178450,150.0,7e-05,2]
[343728117,1732937178471,150.0,7e-05,2]
[343728118,1732937178494,150.0,7e-05,2]
[343728119,1732937178515,150.0,7e-05,2]
[343728120,1732937178538,150.0,7e-05,2]
[343728121,1732937178560,150.0,7e-05,2]
[343728122,1732937178582,150.0,7e-05,2]
[343728123,1732937178603,150.0,7e-05,2]
[343728124,1732937178625,270.72,7e-05,2]
[343728125,1732937178653,18229.28,7e-05,2]
[343728126,1732937264868,1024.0,0.00027,60]
[343728128,1732937315960,259.82,0.00017,10]
[343728146,1732937432454,-2874.2235,7.5e-05,2]
[343728147,1732937432521,-713.96017426,7.5e-05,2]
[343728148,1732937432596,-16411.81632574,7.5e-05,2]
[343728149,1732937432606,-300.0,7.999e-05,2]
[343728150,1732937432617,-1666.52017424,8e-05,2]
[343728151,1732937432628,-6954.57384292,8e-05,2]
[343728152,1732937432640,-7724.4,8e-05,2]
[343728153,1732937432729,-3654.50598284,8e-05,2]
[343728154,1732937432739,-1367.89,8.219e-05,2]
[343728155,1732937432749,-250.0,8.951e-05,2]
[343728156,1732937432759,-1000.0,9.126e-05,2]
[343728157,1732937432768,-14156.98,9.185e-05,2]
[343728158,1732937432778,-270.14,9.229e-05,2]
[343728159,1732937432787,-444.28,9.589e-05,2]
[343728160,1732937432796,-444.28,9.726e-05,2]
[343728161,1732937432806,-205.0,9.8e-05,2]
[343728162,1732937432815,-444.28,9.863e-05,2]
[343728163,1732937432824,-949.79,9.863e-05,2]
[343728164,1732937432834,-1000.0,9.899e-05,2]
[343728165,1732937432843,-918.37793828,9.899e-05,2]
[343728167,1732937438652,-1473.54016172,9.899e-05,2]
[343728168,1732937438661,-150.0,9.899e-05,2]
[343728169,1732937438670,-379.6278,9.9e-05,2]
[343728170,1732937438679,-2512.66003937,9.9e-05,2]
[343728171,1732937438691,-1090.74995,9.9e-05,2]
[343728172,1732937438781,-5523.72957211,9.9e-05,2]
[343728173,1732937438793,-393.66794844,9.9e-05,2]
[343728174,1732937438803,-75.26185469,9.9e-05,2]
[343728175,1732937438812,-6737.32436253,9.9e-05,2]
[343728176,1732937438823,-500.0,9.973e-05,2]
[343728177,1732937438832,-500.0,9.973e-05,2]
[343728178,1732937438842,-32275.48721802,9.98e-05,2]
[343728179,1732937438852,-214.95751713,9.983e-05,2]
[343728181,1732937438864,-214.95751713,9.984e-05,2]
[343728184,1732937438878,-214.95751713,9.987e-05,2]
[343728187,1732937438890,-214.95751713,9.99e-05,2]
[343728188,1732937438900,-150.0,9.998e-05,2]
[343728189,1732937438915,-150.0,9.998e-05,2]
[343728190,1732937438926,-150.0,9.998e-05,2]
[343728191,1732937438936,-150.0,9.998e-05,2]
[343728192,1732937438946,-1000.0,9.999e-05,2]
[343728193,1732937438956,-1000.0,9.999e-05,2]
[343728194,1732937438967,-1571.6046,9.999e-05,2]
[343728195,1732937438977,-626.9,9.999e-05,2]
[343728196,1732937438987,-2000.0,9.999e-05,2]
[343728197,1732937438999,-250000.0,9.999e-05,2]
[343728198,1732937439009,-2374.8186729,9.999e-05,2]
[343728199,1732937439019,-15877.1832379,9.999e-05,2]
[343728200,1732937439028,-4338.85,9.999e-05,2]
[343728201,1732937439039,-186.82110226,9.999e-05,2]
[343728202,1732937439049,-3205.46279925,9.999e-05,2]
[343728203,1732937439058,-186.82110219,9.999e-05,2]
[343728204,1732937439068,-186.82110219,9.999e-05,2]
[343728205,1732937439077,-186.82110219,9.999e-05,2]
[343728206,1732937439087,-186.82110219,9.999e-05,2]
[343728207,1732937439096,-186.82110219,0.0001,2]
[343728208,1732937439106,-186.82110219,0.0001,2]
[343728209,1732937439118,-196.34238466,0.0001,2]
[343728210,1732937439128,-8668.48484175,0.0001,2]
[343728211,1732937439138,-966142.68519065,0.0001,2]
[343728212,1732937439148,-186.82110219,0.0001,2]
[343728213,1732937439158,-186.82110219,0.0001,2]
[343728214,1732937439173,-214.95751713,0.0001,2]
[343728215,1732937439183,-6109.81693022,0.0001,2]
[343728216,1732937439192,-6109.81693016,0.0001,2]
[343728217,1732937439202,-6109.81693016,0.0001,2]
[343728218,1732937439213,-6109.81693016,0.0001,2]
[343728219,1732937439223,-6109.81693016,0.0001,2]
[343728220,1732937439233,-6109.81693016,0.0001,2]
[343728221,1732937439245,-6109.81693016,0.0001,2]
[343728222,1732937439255,-6109.81693016,0.0001,2]
[343728223,1732937439264,-6109.81693016,0.0001,2]
[343728224,1732937439278,-14765404.34795522,0.0001,2]
[343728225,1732937440007,-1122.86103869,0.0001,2]
[343728226,1732937440019,-3700.32012717,0.0001,2]
[343728227,1732937440031,-559.07732498,0.0001,2]
[343728228,1732937440211,-681.34579676,0.0001,2]
[343728229,1732937440223,-2799.6914142,0.0001,2]
[343728232,1732937442421,-152.85,9.589e-05,2]
[343728233,1732937442431,-101.09130098,9.973e-05,2]
[343728234,1732937442640,-51.75869902,9.973e-05,2]
[343728235,1732937442649,-5400.68886188,0.0001,2]
[343728236,1732937442661,-250.06528683,0.0001,2]
[343728237,1732937442672,-4647.49466052,0.0001,2]
[343728306,1732937444355,-6811501.01790811,0.0001,2]
[343728328,1732937536756,3205.46280025,0.00027,60]
[343728330,1732937771474,1000.0,0.00027,60]
[343728351,1732938633097,-1455.62,8.219e-05,2]
[343728353,1732938633107,-3311.51483188,8.5e-05,2]
[343728376,1732938633327,-1428.20139994,8.5e-05,2]
[343728378,1732938633339,-260.28376818,8.5e-05,2]
[343728381,1732938633349,-1342.704918,8.801e-05,2]
[343728382,1732938633359,-1000.0,8.846e-05,2]
[343728385,1732938633369,-150.0,8.849e-05,2]
[343728387,1732938633379,-300.0,8.855e-05,2]
[343728388,1732938633389,-2733.09,8.856e-05,2]
[343728391,1732938633399,-250.0,8.862e-05,2]
[343728392,1732938633408,-296.01,8.876e-05,2]
[343728394,1732938633417,-250.0,8.877e-05,2]
[343728396,1732938633427,-8443.02,8.879e-05,2]
[343728398,1732938633437,-252.97,8.903e-05,2]
[343728400,1732938633446,-164.8,9.548e-05,2]
[343728403,1732938633456,-396.18,9.589e-05,2]
[343728405,1732938633466,-400.0,9.589e-05,2]
[343728407,1732938633476,-396.18,9.726e-05,2]
[343728408,1732938633485,-150.0,9.73e-05,2]
[343728410,1732938633495,-150.0,9.732e-05,2]
[343728413,1732938633505,-150.0,9.733e-05,2]
[343728414,1732938633514,-150.0,9.734e-05,2]
[343728416,1732938633524,-150.0,9.734e-05,2]
[343728419,1732938633535,-150.0,9.737e-05,2]
[343728420,1732938633545,-420.0,9.74e-05,2]
[343728423,1732938633555,-150.0,9.744e-05,2]
[343728425,1732938633567,-150.0,9.751e-05,2]
[343728426,1732938633576,-150.0,9.752e-05,2]
[343728429,1732938633586,-150.0,9.758e-05,2]
[343728431,1732938633596,-150.0,9.764e-05,2]
[343728432,1732938633606,-150.0,9.764e-05,2]
[343728434,1732938633616,-150.0,9.765e-05,2]
[343728436,1732938633625,-150.0,9.766e-05,2]
[343728438,1732938633635,-150.0,9.767e-05,2]
[343728441,1732938633645,-150.0,9.769e-05,2]
[343728442,1732938633655,-150.0,9.769e-05,2]
[343728445,1732938633666,-150.0,9.772e-05,2]
[343728447,1732938633675,-150.0,9.773e-05,2]
[343728448,1732938633684,-150.0,9.777e-05,2]
[343728450,1732938633694,-150.0,9.777e-05,2]
[343728452,1732938633703,-150.0,9.787e-05,2]
[343728454,1732938633712,-150.0,9.791e-05,2]
[343728456,1732938633722,-150.0,9.794e-05,2]
[343728458,1732938633732,-150.0,9.796e-05,2]
[343728460,1732938633742,-150.0,9.804e-05,2]
[343728463,1732938633752,-150.0,9.805e-05,2]
[343728464,1732938633761,-150.0,9.821e-05,2]
[343728467,1732938633771,-150.0,9.821e-05,2]
[343728469,1732938633783,-150.0,9.821e-05,2]
[343728471,1732938633792,-150.0,9.823e-05,2]
[343728473,1732938633801,-150.0,9.828e-05,2]
[343728475,1732938633811,-150.0,9.831e-05,2]
[343728476,1732938633820,-150.0,9.831e-05,2]
[343728478,1732938633829,-150.0,9.833e-05,2]
[343728480,1732938633838,-150.0,9.833e-05,2]
[343728482,1732938633847,-150.0,9.84e-05,2]
[343728485,1732938633857,-150.0,9.841e-05,2]
[343728486,1732938633866,-150.0,9.845e-05,2]
[343728489,1732938633876,-150.0,9.847e-05,2]
[343728490,1732938633886,-150.0,9.85e-05,2]
[343728492,1732938633896,-150.0,9.851e-05,2]
[343728495,1732938633905,-150.0,9.854e-05,2]
[343728496,1732938633915,-150.0,9.859e-05,2]
[343728498,1732938633924,-150.0,9.861e-05,2]
[343728501,1732938633933,-396.18,9.863e-05,2]
[343728502,1732938633943,-759.83,9.863e-05,2]
[343728504,1732938633952,-150.0,9.865e-05,2]
[343728506,1732938633961,-150.0,9.872e-05,2]
[343728507,1732938633970,-150.0,9.877e-05,2]
[343728508,1732938633979,-150.0,9.879e-05,2]
[343728509,1732938633988,-150.0,9.88e-05,2]
[343728510,1732938633998,-150.0,9.881e-05,2]
[343728511,1732938634007,-150.0,9.881e-05,2]
[343728512,1732938634017,-150.0,9.881e-05,2]
[343728513,1732938634026,-150.0,9.885e-05,2]
[343728514,1732938634037,-150.0,9.887e-05,2]
[343728515,1732938634047,-150.0,9.889e-05,2]
[343728516,1732938634056,-150.0,9.893e-05,2]
[343728517,1732938634065,-499.42,9.899e-05,2]
[343728518,1732938634074,-26935.3589,9.899e-05,2]
[343728519,1732938634084,-5189.9973,9.899e-05,2]
[343728520,1732938634094,-1000.0,9.899e-05,2]
[343728522,1732938634103,-36474.6099,9.9e-05,2]
[343728524,1732938634112,-2500.0,9.9e-05,2]
[343728526,1732938634121,-4021.4,9.9e-05,2]
[343728528,1732938634130,-4013.035834,9.9e-05,2]
[343728530,1732938634139,-460.8909,9.9e-05,2]
[343728532,1732938634148,-150.0,9.901e-05,2]
[343728533,1732938634157,-150.0,9.903e-05,2]
[343728535,1732938634166,-150.0,9.904e-05,2]
[343728537,1732938634175,-150.0,9.904e-05,2]
[343728539,1732938634186,-150.0,9.907e-05,2]
[343728542,1732938634196,-150.0,9.909e-05,2]
[343728544,1732938634205,-150.0,9.912e-05,2]
[343728546,1732938634215,-150.0,9.913e-05,2]
[343728548,1732938634224,-150.0,9.92e-05,2]
[343728550,1732938634234,-150.0,9.92e-05,2]
[343728552,1732938634243,-150.0,9.921e-05,2]
[343728554,1732938634252,-150.0,9.922e-05,2]
[343728556,1732938634262,-150.0,9.923e-05,2]
[343728558,1732938634271,-150.0,9.928e-05,2]
[343728560,1732938634281,-150.0,9.928e-05,2]
[343728561,1732938634290,-150.0,9.929e-05,2]
[343728563,1732938634300,-150.0,9.932e-05,2]
[343728566,1732938634309,-150.0,9.935e-05,2]
[343728567,1732938634319,-150.0,9.942e-05,2]
[343728570,1732938634328,-150.0,9.945e-05,2]
[343728572,1732938634338,-1000.0,9.951e-05,2]
[343728573,1732938634347,-150.0,9.965e-05,2]
[343728576,1732938634357,-248.10139249,9.97e-05,2]
[343728578,1732938634366,-59538.0,9.973e-05,2]
[343728580,1732938634376,-500.0,9.973e-05,2]
[343728582,1732938634386,-500.0,9.973e-05,2]
[343728584,1732938634396,-150.0,9.974e-05,2]
[343728586,1732938634406,-150.0,9.975e-05,2]
[343728588,1732938634415,-150.0,9.979e-05,2]
[343728590,1732938634425,-150.0,9.985e-05,2]
[343728592,1732938634435,-296.01,9.986e-05,2]
[343728594,1732938634445,-922.144,9.986e-05,2]
[343728596,1732938634454,-150.0,9.987e-05,2]
[343728598,1732938634464,-150.0,9.988e-05,2]
[343728600,1732938634473,-5895.06752995,9.99e-05,2]
[343728602,1732938634483,-5895.06752991,9.99e-05,2]
[343728603,1732938634493,-5895.06752991,9.99e-05,2]
[343728605,1732938634503,-5895.06752991,9.99e-05,2]
[343728607,1732938634513,-5895.06752991,9.99e-05,2]
[343728609,1732938634523,-5895.06752991,9.99e-05,2]
[343728611,1732938634534,-5895.06752991,9.991e-05,2]
[343728614,1732938634544,-5895.06752991,9.994e-05,2]
[343728616,1732938634554,-5895.06752991,9.997e-05,2]
[343728618,1732938634564,-1000.0,9.999e-05,2]
[343728619,1732938634574,-2000.0,9.999e-05,2]
[343728621,1732938634584,-2000.0,9.999e-05,2]
[343728623,1732938634594,-260.45811795,9.999e-05,2]
[343728625,1732938634603,-1144.38674767,9.999e-05,2]
[343728628,1732938634614,-150.0,9.999e-05,2]
[343728630,1732938634624,-4338.85,9.999e-05,2]
[343728632,1732938634633,-555.14,9.999e-05,2]
[343728634,1732938634643,-2000.0,9.999e-05,2]
[343728636,1732938634652,-196.34238466,0.0001,2]
[343728637,1732938634662,-8668.48484175,0.0001,2]
[343728640,1732938634672,-73173.70566284,0.0001,2]
[343728794,1732938638575,-1858935.70924844,0.0001,2]
[343728795,1732938638585,-6109.81693022,0.0001,2]
[343728796,1732938638596,-6109.81693016,0.0001,2]
[343728797,1732938638605,-6109.81693016,0.0001,2]
[343728805,1732938638936,-6109.81693016,0.0001,2]
[343728807,1732938638979,-6109.81693016,0.0001,2]
[343728808,1732938638988,-6109.81693016,0.0001,2]
[343728809,1732938638998,-6109.81693016,0.0001,2]
[343728810,1732938639008,-6109.81693016,0.0001,2]
[343728811,1732938639017,-6109.81693016,0.0001,2]
[343728812,1732938639027,-4930500.85903724,0.0001,2]
[343728813,1732938639045,-150.29569257,0.0001,2]
[343728814,1732938639059,-21974.19,0.0001,2]
[343728815,1732938639069,-121945.27475459,0.0001,2]
[343728816,1732938639079,-8836598.19378636,0.0001,2]
[343728817,1732938639091,-1775.36137851,0.0001,2]
[343728818,1732938639102,-2182.0601,0.0001,2]
[343728819,1732938639114,-4821.2382,0.0001,2]
[343728820,1732938639126,-4289.85659,0.0001,2]
[343728821,1732938639139,-3343.1825439,0.0001,2]
[343728822,1732938639151,-4171.31162782,0.0001,2]
[343728823,1732938639162,-2189.88,0.0001,2]
[343728824,1732938639173,-590.18487266,0.0001,2]
[343728826,1732938639184,-769.39331621,0.0001,2]
[343728827,1732938639195,-757.86117847,0.0001,2]
[343728838,1732938640865,-6356.12096514,0.0001,2]
[343728840,1732938640876,-648.9,0.0001,2]
[343728856,1732938644092,-1642.801192,0.0001,2]
[343728858,1732938644103,-34734171.4272264,0.0001,2]
[343728860,1732938644114,-120015.65275561,0.0001,2]
[343728862,1732938644125,-12848.10139249,0.0001,2]
[343728864,1732938644136,-84211.38591963,0.0001,2]
[343729055,1732938646695,-1799.67981,0.0001,2]
[343729057,1732938911096,524.123,0.0002673,60]
[343729100,1732939838473,-1382.83,8.219e-05,2]
[343729101,1732939838484,-202.37,8.984e-05,2]
[343729102,1732939838494,-250.0,9.016e-05,2]
[343729103,1732939838503,-1000.0,9.025e-05,2]
[343729104,1732939838513,-791.31752,9.228e-05,2]
[343729105,1732939838560,-266.47605836,9.228e-05,2]
[343729106,1732939838569,-164.8,9.281e-05,2]
[343729107,1732939838579,-216.11,9.317e-05,2]
[343729108,1732939838588,-316.94,9.589e-05,2]
[343729109,1732939838597,-1055.0,9.714e-05,2]
[343729110,1732939838606,-999.99,9.726e-05,2]
[343729111,1732939838615,-782.86,9.726e-05,2]
[343729112,1732939838626,-677.35,9.726e-05,2]
[343729113,1732939838636,-316.94,9.726e-05,2]
[343729114,1732939838646,-1198.7509,9.81e-05,2]
[343729115,1732939838655,-495.4,9.85e-05,2]
[343729116,1732939838665,-316.94,9.863e-05,2]
[343729117,1732939838675,-607.86,9.863e-05,2]
[343729118,1732939838685,-1982.3169,9.873e-05,2]
[343729119,1732939838694,-501.0,9.91e-05,2]
[343729120,1732939838704,-206467.52305266,9.91e-05,2]
[343729121,1732939838715,-388.81088207,9.973e-05,2]
[343729122,1732939838724,-500.0,9.973e-05,2]
[343729123,1732939838734,-200.0,9.983e-05,2]
[343729124,1732939838744,-737.715,9.986e-05,2]
[343729125,1732939838753,-2000.0,9.999e-05,2]
[343729126,1732939838762,-600.78,9.999e-05,2]
[343729127,1732939838771,-3073.35,9.999e-05,2]
[343729128,1732939838781,-2000.0,9.999e-05,2]
[343729129,1732939838790,-21433.27409374,0.0001,2]
[343729130,1732939838803,-1896014.41339393,0.0001,2]
[343729131,1732939838812,-7563.35297538,0.0001,2]
[343729132,1732939838822,-7563.35297536,0.0001,2]
[343729133,1732939838840,-7563.35297536,0.0001,2]
[343729134,1732939838850,-7563.35297536,0.0001,2]
[343729135,1732939838860,-7563.35297536,0.0001,2]
[343729136,1732939838870,-7563.35297536,0.0001,2]
[343729137,1732939838880,-7563.35297536,0.0001,2]
[343729138,1732939838890,-7563.35297536,0.0001,2]
[343729139,1732939838900,-7563.35297536,0.0001,2]
[343729140,1732939838910,-13613708.09783168,0.0001,2]
[343729141,1732939838985,-2619.18686752,0.0001,2]
[343729142,1732939839087,-537.71278115,0.0001,2]
[343729143,1732939840186,-19003.8,0.0001,2]
[343729144,1732939841749,-1119.39412211,0.0001,2]
[343729145,1732939841761,-1834.35,0.0001,2]
[343729146,1732939841841,-288.82349986,0.0001,2]
[343729147,1732939841852,-15022.44443199,0.0001,2]
[343729148,1732939842218,-607.52066065,0.0001,2]
[343729149,1732939842332,-18282.8571264,0.0001,2]
[343729153,1732939843200,-3770.51644611,0.00043042,120]
[343729156,1732939843226,-97927.0,0.00043042,120]
[343729160,1732939843250,-2405.57,0.00043042,120]
[343729164,1732939843277,-2405.57,0.00043042,120]
[343729165,1732939843301,-2405.57,0.00043042,120]
[343729166,1732939843326,-2405.57,0.00043042,120]
[343729167,1732939843351,-2405.57,0.00043042,120]
[343729168,1732939843378,-2405.57,0.00043042,120]
[343729170,1732939843402,-2405.57,0.00043042,120]
[343729171,1732939843427,-2405.57,0.00043042,120]
[343729172,1732939843451,-2405.57,0.00043042,120]
[343729173,1732939843477,-2405.57,0.00043042,120]
[343729174,1732939843502,-2405.57,0.00043042,120]
[343729175,1732939843527,-2405.57,0.00043042,120]
[343729176,1732939843552,-2405.57,0.00043042,120]
[343729177,1732939843577,-2405.57,0.00043042,120]
[343729178,1732939843606,-2405.57,0.00043042,120]
[343729179,1732939843632,-2405.57,0.00043042,120]
[343729180,1732939843658,-2405.57,0.00043042,120]